bitfinex-derivatives/quotes_SOLF0:USTF0_20240827
["timestamp","ask_amount","ask_price","bid_price","bid_amount"]
[1724724935026,0.04605452,158.97,158.96,3.1448]
[1724724939834,0.04605452,158.97,158.96,6.19781717]
[1724724940240,0.04605452,158.97,158.96,3.1448]
[1724724942943,0.04605452,158.97,158.96,6.19780464]
[1724724943546,0.04605452,158.97,158.96,3.1448]
[1724724944834,0.04605452,158.97,158.96,6.19773762]
[1724724947044,0.04605452,158.97,158.96,3.1448]
[1724724947243,0.04605452,158.97,158.96,6.19784042]
[1724724950444,0.04605452,158.97,158.96,13.92784042]
[1724724953348,0.04605452,158.97,158.96,10.8748]
[1724724953648,0.04605452,158.97,158.96,13.92695923]
[1724724954747,0.04605452,158.97,158.96,19.46896307]
[1724724955250,0.04605452,158.97,158.96,13.92695923]
[1724724955441,0.04605452,158.97,158.96,19.46807528]
[1724724956252,0.04605452,158.97,158.96,13.92695923]
[1724724956753,0.04605452,158.97,158.96,6.19695923]
[1724724956946,0.04605452,158.97,158.96,13.92695923]
[1724724961350,0.04605452,158.97,158.96,19.46700675]
[1724724962255,0.04605452,158.97,158.96,10.8748]
[1724724962558,0.04605452,158.97,158.96,21.47942132]
[1724724962752,0.04605452,158.97,158.96,22.51713872]
[1724724962954,0.04605452,158.97,158.96,19.46659978]
[1724724963455,0.04605452,158.97,158.96,21.47953671]
[1724724965754,0.04605452,158.97,158.96,21.47973096]
[1724724967257,1.2604,159.06,159.02,3.1435]
[1724724967455,1.2604,159.06,159.0,7.73]
[1724724967851,1.2604,159.06,159.01,3.1436]
[1724724968055,1.2604,159.06,159.0,7.73]
[1724724968956,0.047508,159.05,159.01,0.04524823]
[1724724969353,0.047508,159.05,159.02,3.1436]
[1724724969859,7.777508,159.05,159.01,3.18884823]
[1724724970049,7.73,159.04,159.01,0.04524823]
[1724724973463,3.190508,159.05,159.01,0.04524823]
[1724724973660,0.047508,159.05,159.01,3.18904823]
[1724724976272,0.047508,159.05,159.02,3.1436]
[1724724977872,7.73,159.04,159.01,3.18894823]
[1724724978068,7.73,159.03,158.93,14.10248372]
[1724724978269,7.73,159.0,158.94,18.33355706]
[1724724978465,7.73,159.0,158.97,3.1444]
[1724724979163,0.04006382,159.0,158.97,0.0418073]
[1724724979766,0.04006382,159.0,158.98,3.1444]
[1724724984173,0.04006382,159.0,158.99,3.1442]
[1724724984378,0.04006382,159.0,158.97,0.0418073]
[1724724985271,0.04006382,159.0,158.98,3.1443]
[1724724985769,0.04006382,159.0,158.97,0.0418073]
[1724724986369,0.04006382,159.0,158.97,3.1863073]
[1724724991471,0.04006382,159.0,158.98,3.1444]
[1724724992279,0.04006382,159.0,158.97,0.0418073]
[1724724992280,7.73,158.99,158.97,0.0418073]
[1724724992483,1.2586,158.98,158.93,5.55483237]
[1724724992678,7.73,158.95,158.92,7.84700252]
[1724724992976,5.0986,158.98,158.93,3.05998677]
[1724724993180,5.0986,158.98,158.92,7.84700252]
[1724724993181,7.73,158.94,158.92,7.84700252]
[1724724993774,10.8753,158.94,158.92,7.84700252]
[1724724994277,10.8753,158.94,158.91,0.04636745]
[1724724994577,3.1454,158.93,158.91,0.04636745]
[1724724994981,8.9949,158.94,158.91,0.04636745]
[1724724995274,7.73,158.92,158.91,0.04636745]
[1724724995479,7.73,158.92,158.87,2.01391932]
[1724724995686,7.73,158.9,158.87,2.01391932]
[1724724996782,7.77754786,158.9,158.87,2.0546153]
[1724724997486,10.92354786,158.9,158.87,2.0546153]
[1724724999477,0.04754786,158.9,158.87,2.0546153]
[1724725001590,7.77754786,158.9,158.87,2.0546153]
[1724725001779,7.73,158.89,158.87,2.0546153]
[1724725004696,7.73,158.89,158.87,0.04069598]
[1724725005684,10.8762,158.89,158.87,0.04069598]
[1724725005887,7.73,158.89,158.84,69.13834456]
[1724725006183,7.73,158.87,158.84,69.13834456]
[1724725006978,7.73,158.87,158.84,72.28544456]
[1724725007183,7.73,158.87,158.84,3.1471]
[1724725010290,7.73,158.87,158.85,3.1469]
[1724725010587,0.04822306,158.88,158.85,7.73]
[1724725011180,0.04822306,158.88,158.87,10.8764]
[1724725012185,0.04822306,158.88,158.87,3.1464]
[1724725012386,0.04822306,158.88,158.83,3.84]
[1724725012581,0.04822306,158.88,158.83,7.73]
[1724725012788,0.04822306,158.88,158.85,3.1469]
[1724725013981,0.04822306,158.88,158.84,3.1471]
[1724725015193,7.77822306,158.88,158.83,3.1473]
[1724725015491,0.04822306,158.88,158.82,7.73]
[1724725015689,0.04822306,158.88,158.85,3.1469]
[1724725021594,5.0408,158.94,158.83,7.73]
[1724725021595,25.18,159.15,158.87,30.92]
[1724725021797,7.73,159.02,158.95,7.73]
[1724725021994,7.73,159.01,158.94,7.73]
[1724725022596,7.73,159.01,158.97,3.1445]
[1724725022799,0.04663863,158.99,158.97,3.1445]
[1724725023195,7.77663863,158.99,158.96,0.04602685]
[1724725023503,7.73,158.98,158.96,0.04602685]
[1724725023693,0.04663863,158.99,158.96,0.04602685]
[1724725023694,7.77663863,158.99,158.96,0.04602685]
[1724725024096,0.04663863,158.99,158.96,0.04602685]
[1724725025501,0.04663863,158.99,158.96,3.19072685]
[1724725026899,0.04663863,158.99,158.96,0.04602685]
[1724725027098,0.04663863,158.99,158.96,19.37602685]
[1724725027902,0.04663863,158.99,158.98,3.1444]
[1724725028496,0.04663863,158.99,158.98,22.4744]
[1724725028802,0.04663863,158.99,158.98,3.1444]
[1724725030009,21.8265,159.06,159.02,3.1436]
[1724725030010,1.2841,159.06,159.02,3.1436]
[1724725030202,5.1041,159.06,159.02,3.1436]
[1724725030705,8.23673118,159.06,159.02,3.1436]
[1724725031104,4.41673118,159.06,158.98,19.33]
[1724725031306,8.28318083,159.06,159.02,0.03985098]
[1724725031608,8.28318083,159.06,159.03,3.1432]
[1724725032406,8.28318083,159.06,159.02,0.03985098]
[1724725033505,11.42598083,159.06,159.02,0.03985098]
[1724725034712,8.28318083,159.06,159.02,0.03985098]
[1724725036314,11.42598083,159.06,159.02,0.03985098]
[1724725036616,8.28318083,159.06,159.02,0.03985098]
[1724725037509,11.42598083,159.06,159.02,0.03985098]
[1724725038110,8.28318083,159.06,159.02,0.03985098]
[1724725039320,27.61318083,159.06,159.02,0.03985098]
[1724725040314,3.143,159.05,159.02,0.03985098]
[1724725040611,27.61318083,159.06,159.02,0.03985098]
[1724725041112,30.75608083,159.06,159.02,0.03985098]
[1724725041311,27.61318083,159.06,159.02,0.03985098]
[1724725041708,3.1431,159.05,159.02,0.03985098]
[1724725043709,27.61318083,159.06,159.02,0.03985098]
[1724725043710,19.33,159.04,159.02,0.03985098]
[1724725044107,4.3888,159.03,159.02,0.03985098]
[1724725044908,1.2454,159.03,159.02,0.03985098]
[1724725045904,1.2454,159.03,158.94,23.23]
[1724725046108,8.9754,159.03,158.95,7.73]
[1724725046510,8.9754,159.03,158.98,3.1443]
[1724725047015,0.0412328,159.02,158.99,0.04148534]
[1724725047209,0.0412328,159.02,158.99,3.18558534]
[1724725051425,0.0412328,159.02,159.0,3.1439]
[1724725058022,0.0412328,159.02,159.01,3.1438]
[1724725060821,7.7712328,159.02,158.99,0.04148534]
[1724725061831,7.7712328,159.02,158.99,3.18568534]
[1724725063433,0.0412328,159.02,158.99,3.18568534]
[1724725064827,0.0412328,159.02,159.0,3.1439]
[1724725073031,7.73,159.01,158.99,0.04148534]
[1724725073831,7.7712328,159.02,158.99,0.04148534]
[1724725074236,0.0412328,159.02,158.99,0.04148534]
[1724725076431,3.1848328,159.02,158.99,0.04148534]
[1724725076628,0.0412328,159.02,158.99,0.04148534]
[1724725078237,3.1848328,159.02,158.99,0.04148534]
[1724725079033,10.9148328,159.02,158.99,0.04148534]
[1724725079339,3.1439,159.01,158.99,0.04148534]
[1724725079840,7.73,159.01,158.99,0.04148534]
[1724725080034,10.8738,159.01,158.99,0.04148534]
[1724725080537,7.73,159.01,158.99,0.04148534]
[1724725083840,3.144,159.0,158.99,0.04148534]
[1724725084038,1.2876,159.0,158.91,1.2374]
[1724725084230,7.73,158.98,158.94,3.1451]
[1724725084834,7.73,158.95,158.92,3.1455]
[1724725085239,7.77773628,158.95,158.92,3.1455]
[1724725086349,0.04773628,158.95,158.9,7.73]
[1724725087139,0.04773628,158.95,158.93,3.1452]
[1724725087842,7.77773628,158.95,158.89,76.75371369]
[1724725088047,7.77773628,158.95,158.89,73.60771369]
[1724725088543,7.77773628,158.95,158.91,3.1456]
[1724725090648,7.77773628,158.95,158.92,3.1455]
[1724725091641,0.04773628,158.95,158.93,3.1453]
[1724725093948,0.04773628,158.95,158.94,3.1452]
[1724725104659,0.04773628,158.95,158.89,65.87771369]
[1724725104956,7.77773628,158.95,158.89,65.87771369]
[1724725105563,7.77773628,158.95,158.91,3.1456]
[1724725108752,7.73,158.93,158.89,65.87771369]
[1724725109261,7.73,158.93,158.85,13.9476]
[1724725109455,7.73,158.93,158.9,3.1459]
[1724725109659,0.04127149,158.91,158.9,3.1459]
[1724725111559,0.04127149,158.91,158.89,3.146]
[1724725111755,0.04127149,158.91,158.87,7.73]
[1724725113365,0.04127149,158.91,158.9,3.146]
[1724725115253,0.04127149,158.91,158.89,3.1461]
[1724725115465,0.04127149,158.91,158.87,7.73]
[1724725115661,0.04127149,158.91,158.86,7.73]
[1724725117065,0.04127149,158.91,158.88,3.1462]
[1724725120471,0.04127149,158.91,158.89,3.1461]
[1724725122873,7.73,158.9,158.88,3.1463]
[1724725124063,7.73,158.9,158.83,5.0852]
[1724725124269,7.73,158.9,158.84,7.73]
[1724725124672,7.73,158.9,158.87,3.1464]
[1724725126172,7.73,158.9,158.84,7.73]
[1724725126485,0.04127149,158.91,158.86,7.73]
[1724725126981,0.04127149,158.91,158.88,3.1462]
[1724725130280,0.04127149,158.91,158.89,3.1461]
[1724725136886,0.04127149,158.91,158.9,3.146]
[1724725140096,1.2183,158.99,158.9,7.73]
[1724725140285,7.73,158.98,158.89,66.61307257]
[1724725140491,10.91844331,158.98,158.91,7.73]
[1724725141296,10.91844331,158.98,158.94,3.145]
[1724725141498,0.04079068,158.96,158.94,3.145]
[1724725141889,0.04079068,158.96,158.93,0.04810044]
[1724725142089,0.04079068,158.96,158.95,3.145]
[1724725157707,0.04079068,158.96,158.94,3.1451]
[1724725157906,0.04079068,158.96,158.93,7.77810044]
[1724725157907,0.04079068,158.96,158.93,0.04810044]
[1724725158605,0.04079068,158.96,158.94,3.1451]
[1724725161906,0.04079068,158.96,158.93,0.04810044]
[1724725162202,7.77079068,158.96,158.93,0.04810044]
[1724725162507,7.77079068,158.96,158.93,3.19340044]
[1724725170604,7.73,158.95,158.93,0.04810044]
[1724725171415,10.8751,158.95,158.93,0.04810044]
[1724725171611,3.1451,158.95,158.93,0.04810044]
[1724725171815,7.73,158.94,158.93,0.04810044]
[1724725183323,7.73,158.95,158.93,0.04810044]
[1724725183831,7.73,158.95,158.93,3.19340044]
[1724725184234,0.04079068,158.96,158.95,3.145]
[1724725187529,0.04079068,158.96,158.94,3.1451]
[1724725191231,0.04079068,158.96,158.93,3.19350044]
[1724725192734,0.04079068,158.96,158.93,0.04810044]
[1724725192735,7.73,158.95,158.93,0.04810044]
[1724725193126,7.73,158.94,158.93,0.04810044]
[1724725193324,0.04079068,158.96,158.93,0.04810044]
[1724725193532,7.73,158.95,158.93,0.04810044]
[1724725199232,10.8751,158.95,158.93,0.04810044]
[1724725202137,3.1452,158.94,158.93,0.04810044]
[1724725202633,3.1457,158.92,158.89,66.61307257]
[1724725202838,7.73,158.9,158.89,66.61307257]
[1724725206127,10.876,158.9,158.89,66.61307257]
[1724725206340,10.876,158.9,158.85,3.1468]
[1724725206536,7.73,158.89,158.85,3.1468]
[1724725206838,7.73,158.89,158.85,5.16090983]
[1724725207032,7.73,158.89,158.85,3.1468]
[1724725208235,7.73,158.89,158.84,2.01423272]
[1724725208236,10.8763,158.89,158.84,3.1471]
[1724725208539,7.73,158.87,158.84,3.1471]
[1724725209238,7.77266387,158.87,158.84,3.1471]
[1724725209831,7.77266387,158.87,158.83,6.9673]
[1724725210738,0.04266387,158.87,158.84,3.1471]
[1724725211543,0.04266387,158.87,158.85,3.1469]
[1724725217436,0.04266387,158.87,158.86,3.1468]
[1724725222643,0.04266387,158.87,158.85,3.1469]
[1724725227248,0.04266387,158.87,158.86,3.1468]
[1724725227449,1.2307,158.94,158.88,0.04775633]
[1724725227450,7.73,158.94,158.88,0.04775633]
[1724725227653,7.73,158.94,158.84,94.24760888]
[1724725227654,2.5448,158.99,158.91,7.73]
[1724725227951,7.73,158.98,158.92,7.73]
[1724725228651,0.04727401,158.97,158.93,0.0461105]
[1724725228845,0.04727401,158.97,158.93,3.1913105]
[1724725230258,7.73,158.95,158.93,0.0461105]
[1724725230555,0.04727401,158.97,158.93,0.0461105]
[1724725230556,7.73,158.94,158.93,0.0461105]
[1724725231852,7.73,158.95,158.93,0.0461105]
[1724725234756,7.73,158.94,158.93,0.0461105]
[1724725237955,7.73,158.94,158.84,68.38250317]
[1724725238158,7.73,158.88,158.84,68.38250317]
[1724725238751,7.73,158.88,158.85,3.1469]
[1724725239051,7.73,158.87,158.84,68.38250317]
[1724725239656,7.73,158.87,158.84,65.23680888]
[1724725242150,0.04746964,158.88,158.85,3.1469]
[1724725242355,0.04746964,158.88,158.84,62.08970888]
[1724725242658,0.04746964,158.88,158.85,3.1468]
[1724725243060,0.04746964,158.88,158.84,62.08970888]
[1724725243261,0.04746964,158.88,158.87,3.1466]
[1724725245659,0.04746964,158.88,158.86,3.1467]
[1724725246255,0.04746964,158.88,158.87,3.1466]
[1724725248567,0.04746964,158.88,158.84,62.08970888]
[1724725249561,0.04746964,158.88,158.85,3.1468]
[1724725252168,7.73,158.87,158.84,65.23680888]
[1724725255776,0.04746964,158.88,158.85,3.1468]
[1724725256069,7.77746964,158.88,158.85,3.1468]
[1724725257968,7.77746964,158.88,158.84,65.23680888]
[1724725265173,10.8766,158.87,158.82,3.1475]
[1724725265377,7.73,158.83,158.79,2.0144702]
[1724725265569,7.73,158.82,158.76,10.11368165]
[1724725265875,0.04064674,158.81,158.77,5.07825845]
[1724725266071,0.04064674,158.81,158.78,5.07825845]
[1724725266274,0.04064674,158.81,158.76,3.82]
[1724725266475,0.04064674,158.81,158.79,3.148]
[1724725267967,0.04064674,158.81,158.8,3.1479]
[1724725270679,0.04064674,158.81,158.8,10.8779]
[1724725271281,0.04064674,158.81,158.8,3.1479]
[1724725271479,0.04064674,158.81,158.8,10.8779]
[1724725273273,8.9797,158.88,158.8,7.73]
[1724725273471,8.9797,158.88,158.82,7.73]
[1724725274483,0.04165974,158.87,158.84,3.147]
[1724725275776,0.04165974,158.87,158.85,3.1469]
[1724725276783,0.04165974,158.87,158.86,3.1468]
[1724725282000,7.77165974,158.87,158.86,3.1468]
[1724725282206,7.77165974,158.87,158.83,0.04355715]
[1724725282408,7.73,158.84,158.83,0.04355715]
[1724725283506,7.73,158.84,158.83,3.19085715]
[1724725284008,7.73,158.84,158.83,0.04355715]
[1724725284197,7.73,158.84,158.77,3.82]
[1724725284403,7.73,158.78,158.74,1.2673]
[1724725284598,7.73,158.78,158.76,3.1487]
[1724725284805,1.2834,158.83,158.76,3.1487]
[1724725284806,7.73,158.77,158.76,3.1487]
[1724725285300,7.73,158.77,158.75,3.1489]
[1724725286300,7.73,158.77,158.74,3.1491]
[1724725286910,7.73,158.77,158.75,3.1489]
[1724725287795,7.73,158.76,158.74,3.1491]
[1724725287996,7.73,158.76,158.69,3.82]
[1724725288199,7.73,158.76,158.69,11.55]
[1724725288396,0.04788119,158.74,158.69,11.55]
[1724725288809,7.77788119,158.74,158.68,1.1927]
[1724725288997,7.73,158.72,158.67,92.64977607]
[1724725289204,7.73,158.72,158.69,3.1501]
[1724725289599,7.73,158.72,158.7,3.1498]
[1724725289800,7.77194181,158.72,158.7,3.1498]
[1724725291104,0.04194181,158.72,158.66,67.19984996]
[1724725291303,0.04194181,158.72,158.69,7.73]
[1724725291609,0.04194181,158.72,158.71,7.73]
[1724725291908,0.04194181,158.72,158.71,10.8797]
[1724725294602,0.04194181,158.72,158.71,3.1497]
[1724725299197,7.73,158.77,158.74,3.149]
[1724725300311,7.7727658,158.77,158.74,3.18935616]
[1724725302116,7.7727658,158.77,158.75,3.1489]
[1724725305517,7.73,158.76,158.75,3.1489]
[1724725308923,7.73,158.76,158.74,0.04035616]
[1724725318823,3.1493,158.74,158.66,59.46984996]
[1724725319026,7.73,158.72,158.66,59.46984996]
[1724725319926,0.04310958,158.71,158.69,3.15]
[1724725321333,7.73,158.7,158.68,3.1503]
[1724725322532,7.73,158.7,158.67,3.1505]
[1724725323630,7.73,158.7,158.66,62.62054996]
[1724725323831,7.73,158.69,158.66,59.46984996]
[1724725324224,0.04310958,158.71,158.66,62.62054996]
[1724725324430,7.73,158.7,158.66,62.62054996]
[1724725328334,7.73,158.7,158.67,3.1505]
[1724725331947,7.73,158.68,158.66,62.62054996]
[1724725334145,7.73,158.7,158.66,62.62054996]
[1724725335452,7.73,158.7,158.66,59.46984996]
[1724725335453,10.88,158.7,158.66,59.46984996]
[1724725335835,7.73,158.7,158.66,59.46984996]
[1724725336238,7.73,158.7,158.66,62.62044996]
[1724725336848,0.04310958,158.71,158.67,3.1505]
[1724725337049,7.77310958,158.71,158.67,3.1505]
[1724725337649,7.77310958,158.71,158.68,3.1503]
[1724725338753,7.73,158.7,158.68,3.1503]
[1724725339847,7.73,158.7,158.67,3.1505]
[1724725347053,7.73,158.7,158.66,62.62044996]
[1724725347253,0.04310958,158.71,158.68,7.73]
[1724725347457,0.04310958,158.71,158.69,3.15]
[1724725348148,0.04310958,158.71,158.7,3.1499]
[1724725350858,1.2976,158.81,158.7,3.22693157]
[1724725351162,1.2976,158.81,158.75,7.73]
[1724725351163,9.0276,158.81,158.75,7.73]
[1724725351461,12.25043728,158.81,158.75,7.73]
[1724725351958,7.73,158.78,158.76,0.04025704]
[1724725353359,0.04092822,158.8,158.76,7.77025704]
[1724725354053,0.04092822,158.8,158.76,0.04025704]
[1724725354458,0.04092822,158.8,158.77,3.1484]
[1724725361271,7.73,158.78,158.76,0.04025704]
[1724725363166,7.77092822,158.8,158.76,0.04025704]
[1724725373265,7.77092822,158.8,158.76,3.18885704]
[1724725382071,7.77092822,158.8,158.76,0.04025704]
[1724725382276,7.77092822,158.8,158.67,7.51565928]
[1724725382277,7.73,158.77,158.67,5.0373]
[1724725382472,7.73,158.74,158.68,7.73]
[1724725382982,7.73,158.74,158.7,61.40031342]
[1724725383387,7.73,158.72,158.69,3.1501]
[1724725390277,7.73,158.72,158.62,5.61067257]
[1724725390278,7.73,158.72,158.68,3.1503]
[1724725390488,7.77787486,158.72,158.65,7.73]
[1724725390688,7.73,158.72,158.65,7.73]
[1724725390890,0.04052581,158.7,158.65,7.73]
[1724725391491,0.04052581,158.7,158.68,3.1502]
[1724725394493,0.04052581,158.7,158.67,3.1505]
[1724725401704,0.04052581,158.7,158.68,3.1502]
[1724725401890,0.04052581,158.7,158.68,7.73]
[1724725403396,0.04052581,158.7,158.69,3.1501]
[1724725404490,0.04052581,158.7,158.62,3.82]
[1724725404693,7.73,158.67,158.58,6.30089414]
[1724725404889,7.73,158.67,158.57,3.6993]
[1724725404890,7.73,158.67,158.6,7.73]
[1724725405090,7.73,158.67,158.61,2.01661458]
[1724725405091,0.04154428,158.64,158.61,2.01661458]
[1724725405493,0.04154428,158.64,158.62,7.73]
[1724725406496,0.04154428,158.64,158.63,3.1513]
[1724725424423,0.04154428,158.64,158.63,10.8813]
[1724725425016,1.275,158.73,158.63,7.73]
[1724725425223,1.275,158.73,158.67,7.73]
[1724725425516,1.275,158.73,158.68,3.1503]
[1724725426115,0.04273285,158.72,158.69,0.04096343]
[1724725428725,0.04273285,158.72,158.69,3.19106343]
[1724725428915,0.04273285,158.72,158.69,0.04096343]
[1724725430434,0.04273285,158.72,158.7,3.1498]
[1724725439141,0.04273285,158.72,158.69,3.19106343]
[1724725440645,0.04273285,158.72,158.7,3.1499]
[1724725441739,0.04273285,158.72,158.71,3.1497]
[1724725443249,0.04273285,158.72,158.71,5.1654351]
[1724725444048,0.04273285,158.72,158.71,12.8954351]
[1724725444349,0.04273285,158.72,158.71,15.95480769]
[1724725445055,0.04273285,158.72,158.71,12.8954351]
[1724725445944,0.04273285,158.72,158.71,15.95532028]
[1724725450251,0.04273285,158.72,158.71,12.8954351]
[1724725450759,0.04273285,158.72,158.71,15.95427621]
[1724725453553,0.04273285,158.72,158.71,10.8797]
[1724725453756,0.04273285,158.72,158.71,13.93736287]
[1724725453956,0.04273285,158.72,158.71,19.01065216]
[1724725454159,0.04273285,158.72,158.71,22.06831513]
[1724725456960,0.04273285,158.72,158.71,20.05268871]
[1724725457163,0.04273285,158.72,158.71,22.06831346]
[1724725460967,0.04273285,158.72,158.71,15.95298772]
[1724725461357,0.04273285,158.72,158.71,12.89532475]
[1724725461761,1.2996,158.79,158.76,3.1487]
[1724725461972,1.2554,158.84,158.77,7.73]
[1724725462156,2.4936,158.84,158.78,7.73]
[1724725462362,2.4936,158.84,158.8,10.8778]
[1724725463053,2.53563974,158.84,158.8,10.92272063]
[1724725463263,2.53563974,158.84,158.83,10.8773]
[1724725463264,0.04203974,158.84,158.83,10.8773]
[1724725467365,4.42862253,158.92,158.83,10.8773]
[1724725467366,1.2382,158.92,158.86,3.1467]
[1724725467567,4.44604376,158.92,158.86,10.8767]
[1724725468666,0.04526388,158.91,158.87,0.04315857]
[1724725470571,7.73,158.9,158.87,0.04315857]
[1724725472867,0.04526388,158.91,158.87,0.04315857]
[1724725477169,3.19106388,158.91,158.87,0.04315857]
[1724725477375,7.77526388,158.91,158.87,0.04315857]
[1724725477873,10.92106388,158.91,158.87,0.04315857]
[1724725479568,7.77526388,158.91,158.87,0.04315857]
[1724725479763,1.2525,158.9,158.87,0.04315857]
[1724725479968,10.8764,158.89,158.84,3.147]
[1724725480169,7.73,158.88,158.83,3.1473]
[1724725480377,8.9831,158.88,158.83,3.1473]
[1724725480773,12.1296,158.88,158.83,3.1473]
[1724725480973,8.9831,158.88,158.82,3.1475]
[1724725481170,0.04180857,158.86,158.83,0.04569915]
[1724725481581,7.77180857,158.86,158.83,0.04569915]
[1724725482284,7.73,158.84,158.74,1.2275]
[1724725482472,7.73,158.82,158.76,7.73]
[1724725482973,7.73,158.82,158.74,5.0475]
[1724725483174,7.73,158.82,158.75,7.73]
[1724725483673,7.73,158.82,158.77,3.1485]
[1724725483872,0.04306653,158.8,158.77,3.19158573]
[1724725484576,0.04306653,158.8,158.77,0.04308573]
[1724725502587,3.19106653,158.8,158.77,0.04308573]
[1724725505686,0.04306653,158.8,158.77,0.04308573]
[1724725505880,7.73,158.79,158.77,0.04308573]
[1724725506885,10.8783,158.79,158.77,0.04308573]
[1724725507086,7.73,158.79,158.77,0.04308573]
[1724725508486,7.73,158.78,158.69,1.2456]
[1724725508688,7.73,158.75,158.69,8.9756]
[1724725508985,3.82,158.77,158.67,7.73]
[1724725508986,7.73,158.74,158.67,7.73]
[1724725509589,0.04318699,158.72,158.67,7.73]
[1724725509983,0.04318699,158.72,158.69,3.15]
[1724725511390,0.04318699,158.72,158.68,3.1503]
[1724725511887,0.04318699,158.72,158.67,3.1505]
[1724725512097,0.04318699,158.72,158.67,10.8805]
[1724725512987,0.04318699,158.72,158.69,7.73]
[1724725513486,0.04318699,158.72,158.7,7.73]
[1724725518191,0.04318699,158.72,158.7,10.8799]
[1724725518402,1.3187,158.83,158.65,1.2535]
[1724725518403,2.536,158.82,158.71,7.73]
[1724725518692,7.73,158.8,158.74,7.73]
[1724725519098,2.536,158.82,158.75,7.73]
[1724725519099,11.55,158.81,158.75,7.73]
[1724725519486,0.04011925,158.8,158.76,0.04318699]
[1724725524400,7.77011925,158.8,158.76,0.04318699]
[1724725535714,10.91811925,158.8,158.76,0.04318699]
[1724725536118,7.73,158.78,158.76,0.04318699]
[1724725542213,0.04011925,158.8,158.76,0.04318699]
[1724725543027,0.04011925,158.8,158.77,7.73]
[1724725543325,0.04011925,158.8,158.78,7.73]
[1724725544317,0.04011925,158.8,158.79,3.1481]
[1724725545217,0.04011925,158.8,158.76,3.86318699]
[1724725545417,0.04011925,158.8,158.76,11.59318699]
[1724725546319,0.04011925,158.8,158.77,2.01493016]
[1724725546515,0.04011925,158.8,158.76,7.77318699]
[1724725547425,0.04011925,158.8,158.78,3.1482]
[1724725549117,0.04011925,158.8,158.77,2.01498449]
[1724725549317,7.77011925,158.8,158.76,0.04318699]
[1724725551931,7.77011925,158.8,158.76,3.19178699]
[1724725552136,0.04011925,158.8,158.77,7.73]
[1724725552331,0.04011925,158.8,158.78,7.73]
[1724725552626,0.04011925,158.8,158.78,10.8783]
[1724725555132,0.04011925,158.8,158.79,10.8781]
[1724725555820,0.04011925,158.8,158.79,15.93947171]
[1724725558630,0.04011925,158.8,158.79,10.8781]
[1724725558836,0.04011925,158.8,158.79,15.93924426]
[1724725560340,0.04011925,158.8,158.79,12.89281007]
[1724725560931,0.04011925,158.8,158.79,12.89277075]
[1724725561332,0.04011925,158.8,158.79,15.93920494]
[1724725561537,0.04011925,158.8,158.79,12.89277075]
[1724725562843,0.04011925,158.8,158.79,3.1481]
[1724725563839,0.04011925,158.8,158.78,2.01476521]
[1724725564139,7.77011925,158.8,158.76,0.04318699]
[1724725566946,0.04011925,158.8,158.76,0.04318699]
[1724725571147,0.04011925,158.8,158.77,7.73]
[1724725571741,7.77011925,158.8,158.76,0.04318699]
[1724725583749,7.73,158.77,158.67,60.87980526]
[1724725583953,1.2893,158.81,158.7,6.26882799]
[1724725584254,7.73,158.74,158.7,3.1497]
[1724725584451,7.73,158.74,158.69,7.73]
[1724725584646,7.73,158.74,158.7,2.01593349]
[1724725584847,7.73,158.76,158.71,3.1497]
[1724725585050,0.04834905,158.74,158.71,3.1497]
[1724725587355,0.04834905,158.74,158.72,7.73]
[1724725587653,0.04834905,158.74,158.73,7.73]
[1724725588749,0.04834905,158.74,158.73,15.94602499]
[1724725589546,0.04834905,158.74,158.73,13.93048515]
[1724725589751,0.04834905,158.74,158.73,15.94591879]
[1724725592551,0.04834905,158.74,158.73,12.89473364]
[1724725592851,0.04834905,158.74,158.73,15.94523871]
[1724725593053,0.04834905,158.74,158.73,13.9298118]
[1724725593258,0.04834905,158.74,158.73,15.94523871]
[1724725594258,0.04834905,158.74,158.73,10.8793]
[1724725594454,0.04834905,158.74,158.73,12.89472691]
[1724725594661,0.04834905,158.74,158.73,15.94508483]